Cogmind - Beta 12 X4 @@@ ROGUE MODE // 2022.12.29 @ 14:43:10 Player: Jezoensis Result: Destroyed by as-64152 with Assembled Blade Performance ------------- Evolutions (0) 0 Regions Visited (4) 800 Robots Destroyed (17) 85 Value Destroyed (257) 257 Prototype IDs (23) 460 Alien Tech Used (0) 0 Bonus (300) 300 TOTAL SCORE: 1902 Bonus ------- Aligned with FarCom 300 Cogmind --------- Core Integrity 0/250 Matter 269/300 Energy 83/100 System Corruption 0% Temperature Warm (160) Movement Core (350) Ox6 Location -9/Mines Parts ------- > --- POWER (1) -------- (None) > --- PROPULSION (2) --- (None) > --- UTILITY (2) ------ Large Storage Unit > --- WEAPON (2) ------- (None) > --- INVENTORY (15) --- Wheel Small Storage Unit Medium Storage Unit High-capacity Storage Unit High-capacity Matter Pod (200) Structural Scanner Visual Processing Unit Seismic Detector Improved Targeting Computer ECM Suite PSU Rigger EM Pulse Gun Light Assault Rifle Mining Laser Peak State ------------ > --- POWER ------------ Reinforced Ion Engine > --- PROPULSION ------- Wheel Armored Wheel > --- UTILITY ---------- Large Storage Unit Structural Scanner > --- WEAPON ----------- Spread Laser Light Cannon > --- INVENTORY -------- Light Treads Small Storage Unit Medium Storage Unit High-capacity Storage Unit High-capacity Matter Pod Visual Processing Unit Seismic Detector Improved Targeting Computer ECM Suite Light Armor Plating PSU Rigger EM Pulse Gun EM Shotgun Light Assault Rifle Mining Laser [Rating: 12] Favorites ----------- Power Reinforced Ion Engine Engine Reinforced Ion Engine Propulsion Wheel Treads Light Treads Wheel Wheel Utility Large Storage Unit Device Structural Scanner Storage Large Storage Unit Processor Improved Targeting Computer Protection Light Armor Plating Weapon Light Assault Rifle Energy Gun EM Pulse Gun Ballistic Gun Light Assault Rifle Ballistic Cannon Light Cannon Special Weapon Mining Laser Build | -11 -10 -10 -10 -9 ------- Run | Scr Mat Min Exi Min Slots Evolved . | . . . . . Power . | . . . . . Propulsion . | . . . . . Utility . | . . . . . Weapon . | . . . . . Parts Attached 34 | 7 11 11 . 5 Power 3 | 1 1 1 . . Engine 3 | 1 1 1 . . Core . | . . . . . Reactor . | . . . . . Propulsion 10 | 2 3 3 . 2 Treads 4 | . 1 2 . 1 Leg . | . . . . . Wheel 6 | 2 2 1 . 1 Hover . | . . . . . Flight . | . . . . . Utility 12 | 2 5 4 . 1 Device 4 | 1 2 1 . . Storage 5 | 1 2 2 . . Processor 1 | . 1 . . . Hackware . | . . . . . Protection 2 | . . 1 . 1 Artifact . | . . . . . Weapon 9 | 2 2 3 . 2 Energy Gun 4 | . 1 1 . 2 Energy Cannon . | . . . . . Ballistic Gun 3 | 2 . 1 . . Ballistic Cannon 1 | . . 1 . . Launcher . | . . . . . Special Weapon 1 | . 1 . . . Impact Weapon . | . . . . . Slashing Weapon . | . . . . . Piercing Weapon . | . . . . . Special Melee Weapon . | . . . . . Unidentified Prototypes . | . . . . . Parts Lost 11 | . 2 3 . 6 Power . | . . . . . Propulsion 5 | . 1 2 . 2 Utility 1 | . . . . 1 Weapon 5 | . 1 1 . 3 Highest Loss Streak 6 | . 2 3 . 6 To Critical Strikes 1 | . 1 . . . Average Slot Usage (%) 99 | . 99 100 100 92 Engine 13 | . 14 14 14 11 Treads 8 | . 2 15 14 4 Wheel 19 | . 25 12 14 21 Device 12 | . 11 11 14 9 Storage 14 | . 14 14 14 14 Processor 1 | . 2 . . . Energy Gun 4 | . 7 . . 11 Ballistic Gun 17 | . 20 20 14 2 Ballistic Cannon 6 | . . 7 14 14 Naked Turns . | . . . . . Heaviest Build 37 | 14 34 35 35 37 Greatest Support 40 | 20 20 40 10 22 Greatest Overweight (x) 3 | 1 3 3 3 3 Average Overweight (x) 1 | . . 2 3 1 Largest Inventory Capacity 15 | 8 15 15 15 15 Average Capacity 13 | 5 13 14 15 15 Most Carried 15 | 6 14 14 14 15 Average Carried 11 | 4 10 11 13 14 Final Capacity 15 | 8 15 15 15 15 Final Carried 14 | 6 14 13 14 14 Class Distribution -------------------- 100% | Mutant Dominant Class ---------------- Mutant | -10/Materials Mutant | -10/Mines Mutant | -10/Exiles Mutant | -9/Mines Resources | -11 -10 -10 -10 -9 ----------- Run | Scr Mat Min Exi Min Matter Collected 829 | 265 226 64 250 24 Remotely . | . . . . . Salvage Created 505 | 141 293 52 . 19 Parts 34 | 6 21 7 . . Haulers Intercepted . | . . . . . Recyclers Shooed . | . . . . . Parts Field Recycled . | . . . . . Retrieved Matter . | . . . . . Parts Self-Destructed . | . . . . . Prevented . | . . . . . Kills | -11 -10 -10 -10 -9 ------- Run | Scr Mat Min Exi Min Combat Hostiles Destroyed 15 | . 9 3 . 3 Guns 15 | . 9 3 . 3 Classes Destroyed 6 | 2 3 . . 1 Tunneler 2 | 2 . . . . Recycler 1 | 1 . . . . Watcher 2 | . 2 . . . Swarmer 9 | . 6 3 . . Grunt 3 | . 3 . . . Assembled 3 | . . . . 3 Best Kill Streak 9 | 1 9 3 . 3 Combat Bots Only 9 | . 9 3 . 3 Max Kills in Single Turn 1 | 1 1 1 . 1 Gunslinging . | . . . . . Exploded . | . . . . . Melee . | . . . . . Uniques/NPCs Destroyed . | . . . . . Combat | -11 -10 -10 -10 -9 -------- Run | Scr Mat Min Exi Min Damage Taken 1320 | . 647 227 . 446 Core 261 | . 185 35 . 41 Absorbed by Shields . | . . . . . Core Remaining (%) 100 | 100 . . . . Volleys Fired 59 | 12 31 9 . 7 Largest 2 | 2 2 2 . 2 Hottest 100 | 40 100 60 . 100 Shots Fired 114 | 24 61 18 . 11 Gun 108 | 24 60 18 . 6 Cannon 5 | . . . . 5 Launcher . | . . . . . Special 1 | . 1 . . . Kinetic 94 | 24 51 14 . 5 Thermal 4 | . 1 . . 3 Explosive . | . . . . . Electromagnetic 16 | . 9 4 . 3 Robot Hit Streak 10 | 8 10 4 . 3 Robot Miss Streak 7 | 2 3 3 . 7 Penetration Max . | . . . . . Secondary Targets 4 | . 3 1 . . Max Gunslinging Chain 1 | . 1 1 . . Shots Hit Robots 74 | 17 39 10 . 8 Core Hits 43 | 6 22 4 . 11 Critical Kills . | . . . . . Critical Parts Destroyed . | . . . . . Critical Strikes . | . . . . . Melee Attacks . | . . . . . Impact . | . . . . . Slashing . | . . . . . Piercing . | . . . . . Sneak Attacks . | . . . . . Combat Hostiles . | . . . . . Follow-up Attacks . | . . . . . Damage Inflicted 824 | 145 452 81 . 146 Guns 739 | 145 452 81 . 61 Cannons 85 | . . . . 85 Explosions . | . . . . . Melee . | . . . . . Ramming . | . . . . . Kinetic 651 | 145 364 57 . 85 Thermal 29 | . . . . 29 Explosive . | . . . . . Electromagnetic 144 | . 88 24 . 32 Impact . | . . . . . Slashing . | . . . . . Piercing . | . . . . . Highest Corruption . | . . . . . Average Corruption . | . . . . . Corruption Purged . | . . . . . Corruption Blocked . | . . . . . Overload Shots . | . . . . . Overflow Damage . | . . . . . Projectiles . | . . . . . Explosions . | . . . . . Melee . | . . . . . Knockbacks 4 | . . . . 4 Impact . | . . . . . Kinetic 4 | . . . . 4 Secondary . | . . . . . Self-Inflicted Damage . | . . . . . Shots . | . . . . . Rammed . | . . . . . Targets Rammed . | . . . . . Kicked . | . . . . . Crushed . | . . . . . Highest Temperature 231 | . 231 101 . 176 Average Temperature 72 | . 61 65 . 132 Received Heat Transfer 204 | . 195 . . 9 Siege Activations . | . . . . . Robots Corrupted . | . . . . . Combat Hostiles . | . . . . . Parts Fried . | . . . . . Impact Corruptions . | . . . . . Robots Melted . | . . . . . Combat Hostiles . | . . . . . Parts Melted . | . . . . . Heat Transferred 40 | . . . . 40 Parts Sabotaged . | . . . . . Parts Stolen . | . . . . . Parts Stripped . | . . . . . Power Chain Reactions . | . . . . . Missiles Intercepted . | . . . . . Alert | -11 -10 -10 -10 -9 ------- Run | Scr Mat Min Exi Min Peak Influence 260 | 15 260 79 . 15 Initial 24 | . 9 24 . . Average 99 | 6 141 72 . 3 Maximum Alert Level 1 | . 1 . . . Low Security (%) 75 | 100 57 100 . 100 Level 1 24 | . 42 . . . Level 2 . | . . . . . Level 3 . | . . . . . Level 4 . | . . . . . Level 5 . | . . . . . High Security . | . . . . . Max Security . | . . . . . Squads Dispatched 1 | . 1 . . . Investigation . | . . . . . Extermination . | . . . . . Reinforcement 1 | . 1 . . . Assault . | . . . . . Garrison . | . . . . . Intercept . | . . . . . Searches Triggered . | . . . . . Construction Impeded . | . . . . . Haulers Reinforced . | . . . . . Active Scanning Responses . | . . . . . Cargo Convoy Interrupts . | . . . . . Stealth | -11 -10 -10 -10 -9 --------- Run | Scr Mat Min Exi Min Distress Signals 1 | . 1 . . . Communications Jammed . | . . . . . Distress Signals . | . . . . . Times Spotted 23 | . 15 3 . 5 Peak Tracking Total 8 | . 8 3 . 5 Tactical Retreats 1 | . . . . 1 Traps | -11 -10 -10 -10 -9 ------- Run | Scr Mat Min Exi Min Traps Triggered . | . . . . . Indirectly . | . . . . . Trap Hack Attempts . | . . . . . Triggered . | . . . . . Disarmed . | . . . . . Reprogrammed . | . . . . . Reused . | . . . . . Traps Extracted . | . . . . . Installed . | . . . . . Triggered . | . . . . . Machines | -11 -10 -10 -10 -9 ---------- Run | Scr Mat Min Exi Min Machines Disabled . | . . . . . Max in Single Turn . | . . . . . Machines Sabotaged . | . . . . . Overloaded Fab Kills . | . . . . . Hacking | -11 -10 -10 -10 -9 --------- Run | Scr Mat Min Exi Min Machines Accessed 8 | . 7 . 1 . Terminals 7 | . 7 . . . Fabricators . | . . . . . Repair Stations . | . . . . . Recycling Units . | . . . . . Scanalyzers . | . . . . . Garrison Access . | . . . . . Total Hacks 16 | . 15 . 1 . Successful 11 | . 10 . 1 . Failed 5 | . 5 . . . Catastrophic . | . . . . . Database Lockouts . | . . . . . Manual 12 | . 11 . 1 . Terminals 15 | . 15 . . . Fabricators . | . . . . . Repair Stations . | . . . . . Recycling Units . | . . . . . Scanalyzers . | . . . . . Garrison Access . | . . . . . Terminal Hacks 6 | . 5 . 1 . Robot Analysis 3 | . 3 . . . Terminal Index 1 | . 1 . . . Zone Layout 1 | . 1 . . . EX-Prototype ID Bank 1 | . . . 1 . Fabricator Hacks . | . . . . . Repair Station Hacks . | . . . . . Recycling Unit Hacks . | . . . . . Scanalyzer . | . . . . . Garrison Access Hacks . | . . . . . Unauthorized Hacks 5 | . 5 . . . Terminals 5 | . 5 . . . Track 1 | . 1 . . . Assimilate 1 | . 1 . . . Botnet 2 | . 2 . . . Operators 1 | . 1 . . . Fabricators . | . . . . . Repair Stations . | . . . . . Recycling Units . | . . . . . Scanalyzers . | . . . . . Garrison Access . | . . . . . Data Cores Recovered . | . . . . . Used . | . . . . . Hacking Detections 6 | . 6 . . . Full Trace Events . | . . . . . Feedback Events . | . . . . . Feedback Blocked . | . . . . . Robot Schematics Acquired . | . . . . . Robots Built . | . . . . . Authchips . | . . . . . Time . | . . . . . Total Robot Build Rating . | . . . . . Part Schematics Acquired . | . . . . . Parts Built . | . . . . . Authchips . | . . . . . Time . | . . . . . Total Part Build Rating . | . . . . . Parts Repaired . | . . . . . Time . | . . . . . Parts Recycled . | . . . . . Recycled Matter . | . . . . . Retrieved Matter . | . . . . . Retrieved Components . | . . . . . Parts Scanalyzed . | . . . . . Part Schematics Acquired . | . . . . . Parts Damaged . | . . . . . Bothacking | -11 -10 -10 -10 -9 ------------ Run | Scr Mat Min Exi Min Used RIF Installer . | . . . . . Robots Hacked . | . . . . . Non-combat . | . . . . . Combat . | . . . . . Robot Hacks Applied . | . . . . . Relay Couplers Released . | . . . . . Fabnet Peak Effective % . | . . . . . Robots Rewired . | . . . . . Allies Hacked . | . . . . . Hacks Repelled . | . . . . . Allies | -11 -10 -10 -10 -9 -------- Run | Scr Mat Min Exi Min Total Allies 1 | . 1 . . . Largest Group 1 | . 1 1 1 1 Highest-Rated Group 10 | . 10 9 9 9 Highest-Rated Ally 10 | . 10 9 9 9 Total Orders . | . . . . . Ally Attacks . | . . . . . Total Damage . | . . . . . Kills . | . . . . . Allies Corrupted 1 | . . . . 1 Allies Melted . | . . . . . Intel | -11 -10 -10 -10 -9 ------- Run | Scr Mat Min Exi Min Robot Analysis Total 3 | . 3 . . . Derelict Logs Recovered 1 | . . . . 1 Drone Launches . | . . . . . Drone Recoveries . | . . . . . Exploration | -11 -10 -10 -10 -9 ------------- Run | Scr Mat Min Exi Min Turns Passed 1054 | 89 441 163 304 57 Spaces Moved 786 | 62 353 99 243 29 Core 47 | 47 . . . . Treads 1 | . . 1 . . Legs . | . . . . . Wheels 738 | 15 353 98 243 29 Hover . | . . . . . Flight . | . . . . . Fastest Speed 50 | 50 80 110 125 100 Average Speed 103 | 59 91 121 125 101 Slowest Speed 160 | 100 125 160 125 125 Overloaded Moves . | . . . . . Propulsion Burnouts . | . . . . . Robots Hopped . | . . . . . Cave-ins Triggered . | . . . . . Exploration Rate (%) 35 | 4 81 19 65 9 Regions Visited 4 Branch Regions 3 Pre-discovered Areas . | . . . . . Known Exits Taken . | . . . . . Unknown Exits Taken 4 | 1 1 1 1 . Scrap Searched 2 | . . 1 . 1 Spaces Dug 1 | . 1 . . . Terrain Destroyed 1 | . 1 . . . Melee . | . . . . . Projectile 1 | . 1 . . . AOE . | . . . . . Terrain Rammed . | . . . . . Walls Destroyed . | . . . . . Machines Disabled . | . . . . . Actions | -11 -10 -10 -10 -9 --------- Run | Scr Mat Min Exi Min Total 913 | 90 412 123 243 45 Wait 3 | . 2 1 . . Move 782 | 61 352 98 242 29 Hop . | . . . . . Pick Up 25 | 9 12 2 1 1 Fast Attach 9 | 5 1 1 . 2 Attach 8 | 2 2 3 . 1 Detach 2 | . . 1 . 1 Swap 17 | . 8 7 . 2 Drop 8 | 1 4 1 . 2 Fire 59 | 12 31 9 . 7 Melee . | . . . . . Ram . | . . . . . Kick . | . . . . . Crush . | . . . . . Escape Stasis . | . . . . . Rewire . | . . . . . Trap . | . . . . . Miscellaneous . | . . . . . Route ------- -11/Scrapyard -10/Materials (discovered 4 exits: [*Mat x3] / [*Min]) -10/Mines -10/Exiles -9/Mines History --------- Turn | Location | Event 11 | -11/Scrapyard | Discovered new exit (range 15) 90 | -11/Scrapyard | Entered Materials 171 | -10/Materials | Discovered new exit (range 13) 281 | -10/Materials | Core integrity fell below 50% 330 | -10/Materials | Destroyed 9 combat bots 334 | -10/Materials | Build established: Mutant 369 | -10/Materials | Discovered new exit (range 16) 423 | -10/Materials | Discovered new exit (range 16) 461 | -10/Materials | Discovered new exit (range 16) 531 | -10/Materials | Entered Mines 531 | -10/Mines | Accompanied by 1 ally 545 | -10/Mines | Core integrity fell below 20% 593 | -10/Mines | Lost 3 parts (2n1w) 614 | -10/Mines | Met a Derelict bent on vengeance 689 | -10/Mines | Deemed a non-threat by the Exiles lab entrance 689 | -10/Mines | Discovered new exit (range 5) 694 | -10/Mines | Entered Exiles 694 | -10/Exiles | Accompanied by 1 ally 724 | -10/Exiles | Met 8R-AWN 747 | -10/Exiles | Met EX-HEX 831 | -10/Exiles | Met EX-BIN 844 | -10/Exiles | Aligned with FarCom system 846 | -10/Exiles | Given EX-Vault access code 874 | -10/Exiles | Opened EX-Vault 881 | -10/Exiles | Found PSU Rigger 905 | -10/Exiles | Warned to stay clear of 0b10 Research branches 942 | -10/Exiles | Met EX-DEC 988 | -10/Exiles | Discovered new exit (range 10) 998 | -10/Exiles | Left Exiles lab with PSU Rigger 998 | -10/Exiles | Entered Mines 998 | -9/Mines | Accompanied by 1 ally 999 | -9/Mines | Assembled infested the area 1004 | -9/Mines | Assisted by a Guerilla fighting off Assembled 1055 | -9/Mines | Destroyed by as-64152 with Assembled Blade Last Messages --------------- 01023_ JC-M4E(g): "I have the funny feeling that things are about to get a lot worse around here, see you around!" 01023_ JC-M4E(g) slips back into the shadows. 01026_ as-91836 sneak attacks. 01026_ Technician 1a system corrupted by crushing effect. 01027_ Technician 1a system terminally corrupted. 01035_ Knocked back. 01036_ as-91836 knocked back. 01039_ as-09186 knocked back. 01042_ as-09186 destroyed. 01043_ Spread Laser destroyed. 01043_ Lgt. Armor Plating destroyed. 01045_ as-66659 knocked back. 01048_ Lgt. Treads destroyed. 01048_ as-91836 destroyed. 01049_ Rnf. Ion Engine severed. 01050_ as-66659 destroyed. 01053_ Arm. Wheel destroyed. 01055_ Lgt. Cannon destroyed. 01055_ EM Shotgun destroyed. Map ----- +----------------------------------------------------+ | ?????????????????????????????????????????????????? | | ?????????????????????????????????????????????????? | | ?????????????????????????????????????????????????? | | ?????????????????????????????????????????????????? | | ?????????????????????????????????????????????????? | | ?????????????????????????????????????????????????? | | ?????????????????????????????????????????????????? | | ?????????????????????????????????????????????????? | | ????????????????????####?????????????????????????? | | ????????????????????### ?????????????????????????? | | ????????????????????## ?????????????????????????? | | ????????????????????# #???????????????????????? | | ????????????????????? ##???????????????????????? | | ????????????????????# ##???????????????????????? | | ????????????????????## ##???????????????????????? | | ????????????????????## ##???????????????????????? | | ????????????????????## ##???????????????????????? | | ????????????????????## ##???????????????????????? | | ????????????????????## ##???????????????????????? | | ?????????????????##### ###??????????????????????? | | ????????????????###### ####?????????????????????? | | ????????????????### ####????????????????????? | | ????????????????## % ###????????????????????? | | ????????????????## %%[ ###???????????????????? | | ????????????????### %%%a###???????????????????? | | ????????????????### %*@ ###??????????????????? | | ????????????????## ### ###?????????????????? | | ????????????????## #### ##?????????????????? | | ????????????????### ##### ##?????????????????? | | ???????### ?????### ##### ###?????????????????? | | ???????### ?? ##### ##?### ####?????????????????? | | ???????## ##### ########### ???###???????????? | | ???????## #%########### ##???????????? | | ???????### ???????????? | | ????????### ### $ " ???????????? | | ?????????######################### ??????????????? | | ??????????????#####################??????????????? | | ?????????????????????????????????????????????????? | | ?????????????????????????????????????????????????? | | ?????????????????????????????????????????????????? | | | | | | | | | | | | | | | | | | | | | +----------------------------------------------------+ Best States ------------- Heat Dissipation 25 Energy Generation 12 Energy Capacity 265 Matter Stores 300 Matter Capacity 300 Sight Range 16 Terrain Scan Range 16 Terrain Scan Density 10 Armor Coverage 150 Evasion (%) 50 Targeting Accuracy 6 Recoil Reduction 2 Item Schematics ----------------- None Robot Schematics ------------------ None Fabricated ------------ Nothing Alien Tech Used ----------------- None Achievements -------------- None Challenges ------------ None Game ------ Seed GaussUltimateNukerbomber Manual? 0 Play Time 00:13:42 Cumulative 855.4 hours Start 2022.12.29 @ 14:30:57 End 2022.12.29 @ 14:43:10 Sessions 1 Manual Loads 0 Difficulty Rogue Special Mode None Game No. 444 Rogue 317 Adventurer 125 Explorer 2 Win Type - Total 100 Types 82/7/6/1/1/0/0/2/1 Lore% 84 Gallery% 90 Achievement% 80 Wizard Run 0 Options --------- ASCII 0 Keyboard 1 Movement Numpad Keybinds 0 Fullscreen 1 Font 36/TerminusFine Map View 83x50 Tactical HUD 1 Map Filters NONE Filters NONE Steam 1 RUN: c2907d32-a1e0-454d-b0ca-7afd202919ba